fUST/lending_fUST_20250511
["ID","MTS","AMOUNT","RATE_DAILY","PERIOD"]
[360682074,1746925834366,-3000.0,0.0001619,2]
[360682076,1746925834375,-4739.171876,0.000162,2]
[360682078,1746925834386,-183.845172,0.000162,3]
[360682080,1746925834395,-500.0,0.00016355,2]
[360682082,1746925834405,-162.1540811,0.00016357,2]
[360682084,1746925834415,-157.8397362,0.00016357,2]
[360682086,1746925834427,-151.0,0.000164,2]
[360682088,1746925834438,-151.0,0.000164,2]
[360682090,1746925834447,-202.38479307,0.00016438,2]
[360682092,1746925834457,-180.06302206,0.00016524,2]
[360682094,1746925834467,-16949.88252484,0.00016624,2]
[360682096,1746925834477,-954.0,0.00017,2]
[360682098,1746925834486,-151.0,0.000171,2]
[360682100,1746925834496,-151.0,0.000172,2]
[360682102,1746925834505,-183.845172,0.00017452,7]
[360682104,1746925834515,-16949.88252484,0.00017538,2]
[360682106,1746925834525,-1085.5518998,0.0001761,2]
[360682108,1746925834535,-151.0,0.000179,2]
[360682110,1746925834544,-151.0,0.000179,2]
[360682112,1746925834553,-153.39,0.000179,31]
[360682114,1746925834563,-153.39,0.000179,31]
[360682116,1746925834573,-153.39,0.000179,31]
[360682118,1746925834584,-153.39,0.000179,31]
[360682120,1746925834594,-153.39,0.000179,31]
[360682122,1746925834603,-153.39,0.000179,31]
[360682124,1746925834613,-153.39,0.000179,31]
[360682126,1746925834623,-153.39,0.000179,31]
[360682128,1746925834632,-153.39,0.000179,31]
[360682130,1746925834642,-153.39,0.000179,31]
[360682132,1746925834651,-153.39,0.000179,31]
[360682134,1746925834661,-153.39,0.000179,31]
[360682136,1746925834670,-153.39,0.000179,31]
[360682138,1746925834680,-153.39,0.000179,31]
[360682140,1746925834690,-22630.95231565,0.00018,2]
[360682142,1746925834699,-675.97179954,0.00018,2]
[360682144,1746925834709,-503.43,0.00018,2]
[360682146,1746925834719,-364.97,0.00018,2]
[360682148,1746925834728,-364.97,0.00018,2]
[360682150,1746925834738,-364.97,0.00018,2]
[360682152,1746925834749,-250.0,0.00018,30]
[360682155,1746925834759,-500.0,0.00018,2]
[360682157,1746925834768,-500.0,0.00018,2]
[360682159,1746925834777,-160.0,0.0001807,3]
[360682161,1746925834787,-517.032,0.00018082,2]
[360682163,1746925834797,-7884.60367508,0.00018452,2]
[360682626,1746925843069,-404.0,0.00013897,2]
[360682628,1746925843079,-404.0,0.00016897,2]
[360682630,1746925843089,-1880.8947042,0.00018452,2]
[360682632,1746925843100,-7184.38414556,0.00018452,2]
[360682634,1746925843110,-722.14378,0.00018457,7]
[360682636,1746925843119,-500.0,0.00018556,2]
[360682639,1746925843129,-160.0,0.00018598,4]
[360682642,1746925843138,-151.0,0.000186,2]
[360682645,1746925843147,-151.0,0.000187,2]
[360682648,1746925843157,-417.84883502,0.000188,2]
[360682651,1746925843166,-1000.0,0.00018813,2]
[360682654,1746925843176,-1000.0,0.00018813,2]
[360682657,1746925843186,-3121.82660216,0.00018823,2]
[360684797,1746927038043,-353.95476851,9.54e-05,2]
[360684798,1746927038053,-334.55922173,9.54e-05,2]
[360684799,1746927038062,-1953.24929457,9.541e-05,2]
[360684800,1746927038123,-3428.62802035,9.541e-05,2]
[360684801,1746927038132,-1929.60869484,9.642e-05,2]
[360685151,1746927043364,-4858.48686103,9.642e-05,2]
[360685620,1746927157666,180.0,0.00022,120]
[360685622,1746927473660,911.1376,0.00022,120]
[360685659,1746928232375,-2849.34292538,9.339e-05,2]
[360685661,1746928232386,-238.82701245,9.439e-05,2]
[360685663,1746928232397,-253.20162422,9.439e-05,2]
[360685664,1746928232407,-5382.22962524,9.44e-05,2]
[360685665,1746928232417,-300.0,9.74e-05,2]
[360685666,1746928232428,-163.26288282,9.741e-05,2]
[360685667,1746928232437,-285.705652,9.741e-05,2]
[360685668,1746928232447,-238.71322752,9.741e-05,2]
[360685670,1746928232456,-400.0,9.741e-05,2]
[360685671,1746928232465,-189.02587719,9.741e-05,2]
[360685673,1746928232474,-377.69027238,9.741e-05,2]
[360685676,1746928232493,-211.05935917,9.741e-05,2]
[360685678,1746928232504,-358.38013081,9.741e-05,2]
[360685680,1746928232514,-235.79466833,9.741e-05,2]
[360685682,1746928232523,-310.63807952,9.741e-05,2]
[360685684,1746928232533,-12619.28597579,9.742e-05,2]
[360685686,1746928232543,-842.34118046,9.742e-05,2]
[360685688,1746928232553,-160.0,9.742e-05,2]
[360685690,1746928232563,-160.0,9.742e-05,2]
[360685692,1746928232572,-160.0,9.742e-05,2]
[360685694,1746928232581,-212.13671436,9.742e-05,2]
[360685696,1746928232591,-160.0,9.742e-05,2]
[360685698,1746928232600,-160.0,9.742e-05,2]
[360685700,1746928232610,-160.0,9.742e-05,2]
[360685702,1746928232619,-10251.70622855,0.0001,2]
[360685704,1746928232628,-170.86650367,0.00010015,2]
[360685706,1746928232638,-10251.70622833,0.00010121,2]
[360685708,1746928232648,-159.18401022,0.00010124,2]
[360685710,1746928232657,-382.50814285,0.00010124,2]
[360685712,1746928232667,-5331.76573244,0.00010427,2]
[360685714,1746928232677,-375.62195319,0.00010517,2]
[360685716,1746928232686,-3507.24634645,0.00010541,2]
[360685719,1746928232699,-4340.83620811,0.00010541,2]
[360685721,1746928232710,-1115.51770175,0.00010541,2]
[360685950,1746928238326,-160.0,9.742e-05,2]
[360685951,1746928238335,-422.13686889,9.742e-05,2]
[360685952,1746928238345,-53.30620647,9.742e-05,2]
[360686585,1746928561315,430.17807863,0.00022,120]
[360687044,1746929443562,-167.17890872,9.446e-05,2]
[360687046,1746929443572,-177.24113695,9.446e-05,2]
[360687048,1746929443581,-4035.8181258,9.447e-05,2]
[360687050,1746929443591,-2989.7375995,9.642e-05,2]
[360687052,1746929443601,-1000.0,9.7e-05,2]
[360687054,1746929443611,-160.0,9.741e-05,2]
[360687056,1746929443620,-46.27760712,9.741e-05,2]
[360687287,1746929446401,-113.72239288,9.741e-05,2]
[360687289,1746929446411,-160.0,9.814e-05,2]
[360687291,1746929446420,-189.0,9.999e-05,2]
[360687293,1746929446431,-118.44578879,0.0001,2]
[360687302,1746929446507,-881.55421121,0.0001,2]
[360687304,1746929446517,-7568.05555012,0.0001,2]
[360689878,1746929474175,2773.1554791,0.00022,120]
[360690013,1746930638608,-668.71646061,9.886e-05,2]
[360690014,1746930638619,-160.0,9.998e-05,2]
[360690015,1746930638629,-160.0,9.998e-05,2]
[360690016,1746930638639,-160.0,9.998e-05,2]
[360690017,1746930638649,-160.0,0.00010331,2]
[360690018,1746930638658,-1076.40573667,0.00010428,2]
[360690019,1746930638673,-10417.0,0.00010428,2]
[360692523,1746930772424,10000.0,0.00022,120]
[360692524,1746930810966,12856.495769,0.00011,14]
[360692561,1746931831731,-250.0,9.637e-05,2]
[360692562,1746931831744,-1219.81079617,9.686e-05,2]
[360692564,1746931831755,-372.03609102,9.786e-05,2]
[360692565,1746931831766,-1818.8206639,9.853e-05,2]
[360692566,1746931831777,-188.0,0.0001,2]
[360692567,1746931831788,-188.0,0.0001,2]
[360692568,1746931831799,-5302.04230636,0.00010201,2]
[360692569,1746931831811,-5441.95769364,0.00010201,2]
[360692570,1746931831823,-188.0,0.000104,2]
[360692571,1746931831833,-188.0,0.000104,3]
[360692572,1746931831843,-188.0,0.000104,3]
[360692573,1746931831854,-10518.96026682,0.00010421,2]
[360692799,1746931839900,-1194.37986387,0.00010421,2]
[360692806,1746931839955,-376.1391984,0.00010421,2]
[360693400,1746931845948,-529.8066467,0.00010421,2]
[360693401,1746931845960,-160.0,0.00010421,2]
[360693402,1746931845972,-842.34118046,0.00010421,2]
[360693403,1746931845983,-160.0,0.00010421,2]
[360693404,1746931845995,-422.13686889,0.00010421,2]
[360693405,1746931846008,-160.0,0.00010422,2]
[360693406,1746931846022,-160.0,0.00010422,2]
[360693407,1746931846034,-160.0,0.00010422,2]
[360693408,1746931846047,-160.0,0.00010422,2]
[360693409,1746931846059,-474.99881945,0.00010423,2]
[360693410,1746931846072,-1288.0,0.00010518,2]
[360693411,1746931846083,-200.90027661,0.000109,2]
[360693412,1746931846093,-397.81620797,0.000109,2]
[360693886,1746931917405,10000.0,0.00022,120]
[360693887,1746931938171,855.013937,0.00022,120]
[360693892,1746932440187,2303.0,0.00014,120]
[360694802,1746933046134,-186.31153893,9.536e-05,2]
[360694804,1746933046145,-1769.92680333,9.536e-05,2]
[360694806,1746933046154,-500.0,9.62e-05,2]
[360694808,1746933046164,-500.0,9.62e-05,2]
[360694810,1746933046174,-500.0,9.62e-05,2]
[360694812,1746933046185,-500.0,9.62e-05,2]
[360694814,1746933046195,-500.0,9.62e-05,2]
[360694816,1746933046204,-500.0,9.62e-05,2]
[360694818,1746933046214,-500.0,9.62e-05,2]
[360694820,1746933046223,-500.0,9.62e-05,2]
[360694822,1746933046232,-500.0,9.62e-05,2]
[360694824,1746933046242,-500.0,9.62e-05,2]
[360694826,1746933046252,-500.0,9.62e-05,2]
[360694828,1746933046261,-300.0,9.621e-05,2]
[360694830,1746933046270,-2391.35870872,9.623e-05,2]
[360696527,1746934246219,-300.0,8.763e-05,2]
[360696529,1746934246228,-11.0,8.764e-05,2]
[360697226,1746934409965,1002.81338474,0.00022,120]
[360697228,1746934711578,160.8,8.02e-05,2]
[360697234,1746935233109,164.711749,7.973e-05,2]
[360698101,1746936085592,568.2848948,7.691e-05,2]
[360698102,1746936131312,24900.0,7.397e-05,2]
[360698121,1746936531064,16510.230468,7.126e-05,2]
[360698124,1746936609421,31228.8655778,7.07e-05,2]
[360698206,1746936638429,-500.0,8.062e-05,2]
[360698208,1746936638439,-500.0,8.062e-05,2]
[360698210,1746936638448,-500.0,8.062e-05,2]
[360698231,1746936638642,-500.0,8.062e-05,2]
[360698233,1746936638653,-269.92702852,8.062e-05,2]
[360698235,1746936638666,-166.76667302,8.062e-05,2]
[360698237,1746936638676,-500.0,8.062e-05,2]
[360698239,1746936638686,-500.0,8.062e-05,2]
[360698241,1746936638697,-500.0,8.062e-05,2]
[360698243,1746936638708,-500.0,8.062e-05,2]
[360698245,1746936638717,-500.0,8.062e-05,2]
[360698247,1746936638727,-500.0,8.062e-05,2]
[360698249,1746936638736,-500.0,8.062e-05,2]
[360698251,1746936638748,-500.0,8.062e-05,2]
[360698253,1746936638757,-500.0,8.062e-05,2]
[360698255,1746936638772,-500.0,8.062e-05,2]
[360698257,1746936638782,-300.0,8.063e-05,2]
[360698259,1746936638792,-300.0,8.063e-05,2]
[360698261,1746936638802,-300.0,8.063e-05,2]
[360698263,1746936638813,-1200.0,8.063e-05,2]
[360698265,1746936638822,-448.1210018,8.063e-05,2]
[360698267,1746936638832,-612.18737221,8.063e-05,2]
[360698269,1746936638842,-612.18737221,8.063e-05,2]
[360698271,1746936638852,-612.18737221,8.063e-05,2]
[360698273,1746936638862,-612.18737221,8.063e-05,2]
[360698275,1746936638872,-612.18737221,8.063e-05,2]
[360698277,1746936638882,-612.18737221,8.063e-05,2]
[360698279,1746936638891,-612.18737221,8.063e-05,2]
[360698281,1746936638901,-612.18737221,8.063e-05,2]
[360698283,1746936638911,-612.18737221,8.063e-05,2]
[360698285,1746936638920,-612.18737221,8.063e-05,2]
[360698287,1746936638931,-612.18737221,8.063e-05,2]
[360698289,1746936638940,-612.18737221,8.063e-05,2]
[360698290,1746936638950,-612.18737221,8.063e-05,2]
[360698291,1746936638959,-612.18737221,8.063e-05,2]
[360698292,1746936638968,-612.18737221,8.063e-05,2]
[360698293,1746936638978,-612.18737221,8.063e-05,2]
[360698294,1746936638990,-612.18737221,8.063e-05,2]
[360698295,1746936638999,-612.18737221,8.063e-05,2]
[360698296,1746936639009,-152.638988,8.064e-05,2]
[360698297,1746936639018,-280.40449,8.068e-05,2]
[360698298,1746936639027,-153.379667,8.069e-05,2]
[360698299,1746936639037,-217.835451,8.069e-05,2]
[360698300,1746936639046,-4962.07429775,8.07e-05,2]
[360698396,1746936640105,-27919.37381017,8.07e-05,2]
[360698398,1746936640117,-1020.0,8.07e-05,2]
[360698400,1746936640128,-427.38381712,8.07e-05,2]
[360698412,1746936640226,-41133.32997922,8.07e-05,2]
[360698466,1746936640691,-5572.98454052,8.07e-05,2]
[360698957,1746936646317,-8520.37436749,8.07e-05,2]
[360698968,1746936646424,-4710.8,8.07e-05,2]
[360698986,1746936646795,-774.90751728,8.07e-05,2]
[360699015,1746937120527,419.025,7.909e-05,2]
[360699016,1746937227998,1819.487133,7.491e-05,2]
[360699018,1746937496603,164.8273781,8.014e-05,2]
[360699041,1746937809280,509.34623527,0.00022,120]
[360699490,1746937844731,-412.60625222,8.06e-05,2]
[360699690,1746937846611,-87.39374778,8.06e-05,2]
[360699692,1746937846620,-177.50274393,8.06e-05,2]
[360699703,1746937846720,-185.5892211,8.06e-05,2]
[360699705,1746937846730,-363.97203765,8.06e-05,2]
[360699707,1746937846739,-500.0,8.06e-05,2]
[360699709,1746937846748,-1200.0,8.061e-05,2]
[360699711,1746937846759,-300.0,8.061e-05,2]
[360699713,1746937846768,-785.50596125,8.061e-05,2]
[360699715,1746937846778,-785.50596125,8.061e-05,2]
[360699717,1746937846787,-313.68470126,8.061e-05,2]
[360699719,1746937846797,-785.50596125,8.061e-05,2]
[360699721,1746937846806,-785.50596125,8.061e-05,2]
[360699723,1746937846817,-785.50596125,8.061e-05,2]
[360699725,1746937846827,-785.50596125,8.061e-05,2]
[360699727,1746937846836,-785.50596125,8.061e-05,2]
[360699729,1746937846846,-785.50596125,8.061e-05,2]
[360699731,1746937846855,-549.38936671,8.061e-05,2]
[360699908,1746938287970,1062.7029743,7.159e-05,2]
[360699909,1746938320741,335.22,7.909e-05,2]
[360699910,1746938516844,1370.014668,7.397e-05,2]
[360699965,1746939031730,-300.0,8.051e-05,2]
[360699967,1746939031740,-234.157687,8.053e-05,2]
[360699969,1746939031749,-234.157687,8.053e-05,2]
[360699971,1746939031759,-151.0,8.055e-05,2]
[360699973,1746939031769,-308.905421,8.055e-05,2]
[360699974,1746939031779,-151.0,8.055e-05,2]
[360699975,1746939031789,-308.905421,8.055e-05,2]
[360699976,1746939031798,-151.0,8.055e-05,2]
[360699977,1746939031808,-151.0,8.055e-05,2]
[360699978,1746939031818,-151.0,8.055e-05,2]
[360699979,1746939031827,-151.0,8.055e-05,2]
[360699980,1746939031838,-151.0,8.055e-05,2]
[360699981,1746939031848,-152.077125,8.055e-05,2]
[360699982,1746939031857,-223.059596,8.055e-05,2]
[360699983,1746939031866,-223.059596,8.055e-05,2]
[360699984,1746939031875,-151.0,8.055e-05,2]
[360699985,1746939031884,-151.0,8.055e-05,2]
[360699986,1746939031894,-151.0,8.055e-05,2]
[360699987,1746939031903,-151.0,8.055e-05,2]
[360699988,1746939031913,-151.0,8.055e-05,2]
[360699989,1746939031923,-151.0,8.055e-05,2]
[360699990,1746939031932,-151.0,8.055e-05,2]
[360699991,1746939031942,-2808.151605,8.055e-05,2]
[360699992,1746939031951,-2808.151605,8.055e-05,2]
[360699993,1746939031961,-151.0,8.055e-05,2]
[360699994,1746939031970,-151.0,8.055e-05,2]
[360699995,1746939031979,-151.0,8.055e-05,2]
[360699996,1746939031990,-265.98168,8.055e-05,2]
[360699997,1746939031999,-392.627055,8.055e-05,2]
[360699998,1746939032009,-392.627055,8.055e-05,2]
[360699999,1746939032019,-751.823098,8.055e-05,2]
[360700000,1746939032029,-151.0,8.056e-05,2]
[360700001,1746939032038,-151.0,8.056e-05,2]
[360700002,1746939032048,-151.0,8.056e-05,2]
[360700003,1746939032057,-151.0,8.056e-05,2]
[360700004,1746939032066,-151.0,8.056e-05,2]
[360700005,1746939032076,-151.0,8.056e-05,2]
[360700006,1746939032086,-151.0,8.056e-05,2]
[360700007,1746939032096,-475.780196,8.056e-05,2]
[360700008,1746939032105,-475.780196,8.056e-05,2]
[360700009,1746939032116,-306.646714,8.056e-05,2]
[360700010,1746939032125,-306.646714,8.056e-05,2]
[360700011,1746939032137,-151.0,8.056e-05,2]
[360700012,1746939032147,-266.375555,8.056e-05,2]
[360700013,1746939032157,-266.375555,8.056e-05,2]
[360700014,1746939032166,-234.157687,8.056e-05,2]
[360700015,1746939032176,-234.157687,8.056e-05,2]
[360700016,1746939032186,-151.0,8.058e-05,2]
[360700017,1746939032195,-151.0,8.058e-05,2]
[360700018,1746939032204,-151.0,8.058e-05,2]
[360700019,1746939032214,-151.0,8.058e-05,2]
[360700020,1746939032224,-151.0,8.058e-05,2]
[360700021,1746939032234,-151.0,8.058e-05,2]
[360700022,1746939032244,-151.0,8.058e-05,2]
[360700023,1746939032253,-151.0,8.058e-05,2]
[360700024,1746939032263,-152.082636,8.058e-05,2]
[360700025,1746939032273,-151.0,8.058e-05,2]
[360700026,1746939032282,-195.983552,8.058e-05,2]
[360700027,1746939032292,-154.762662,8.058e-05,2]
[360700028,1746939032302,-151.0,8.058e-05,2]
[360700029,1746939032311,-151.0,8.058e-05,2]
[360700030,1746939032322,-151.0,8.058e-05,2]
[360700031,1746939032332,-151.0,8.058e-05,2]
[360700032,1746939032341,-475.780196,8.058e-05,2]
[360700033,1746939032351,-475.780196,8.058e-05,2]
[360700034,1746939032360,-306.646714,8.058e-05,2]
[360700035,1746939032370,-306.646714,8.058e-05,2]
[360700036,1746939032380,-151.0,8.058e-05,2]
[360700037,1746939032390,-266.375555,8.058e-05,2]
[360700038,1746939032400,-266.375555,8.058e-05,2]
[360700039,1746939032409,-151.0,8.058e-05,2]
[360700040,1746939032419,-151.0,8.058e-05,2]
[360700041,1746939032429,-308.905421,8.058e-05,2]
[360700042,1746939032439,-308.905421,8.058e-05,2]
[360700043,1746939032449,-151.0,8.058e-05,2]
[360700044,1746939032458,-162.622556,8.058e-05,2]
[360700045,1746939032467,-308.905421,8.058e-05,2]
[360700046,1746939032477,-308.905421,8.058e-05,2]
[360700047,1746939032487,-251.329577,8.058e-05,2]
[360700048,1746939032497,-151.0,8.058e-05,2]
[360700049,1746939032506,-151.0,8.058e-05,2]
[360700050,1746939032516,-151.0,8.058e-05,2]
[360700051,1746939032530,-151.0,8.058e-05,2]
[360700052,1746939032540,-151.0,8.058e-05,2]
[360700053,1746939032549,-151.0,8.058e-05,2]
[360700054,1746939032559,-151.0,8.058e-05,2]
[360700055,1746939032570,-151.0,8.058e-05,2]
[360700056,1746939032579,-223.059596,8.058e-05,2]
[360700057,1746939032589,-223.059596,8.058e-05,2]
[360700058,1746939032600,-223.059596,8.058e-05,2]
[360700059,1746939032609,-223.059596,8.058e-05,2]
[360700060,1746939032619,-151.0,8.058e-05,2]
[360700061,1746939032629,-151.0,8.058e-05,2]
[360700062,1746939032638,-151.0,8.058e-05,2]
[360700063,1746939032648,-257.706538,8.058e-05,2]
[360700064,1746939032657,-151.0,8.058e-05,2]
[360700065,1746939032667,-151.0,8.058e-05,2]
[360700066,1746939032676,-151.0,8.058e-05,2]
[360700067,1746939032686,-151.0,8.058e-05,2]
[360700068,1746939032695,-151.0,8.058e-05,2]
[360700069,1746939032705,-151.0,8.058e-05,2]
[360700070,1746939032714,-151.0,8.058e-05,2]
[360700071,1746939032724,-151.0,8.058e-05,2]
[360700072,1746939032733,-151.0,8.058e-05,2]
[360700073,1746939032743,-151.0,8.058e-05,2]
[360700074,1746939032753,-2808.151605,8.058e-05,2]
[360700075,1746939032763,-1295.59770836,8.058e-05,2]
[360700076,1746939032785,-1512.55389664,8.058e-05,2]
[360700077,1746939032795,-2808.151605,8.058e-05,2]
[360700078,1746939032805,-2808.151605,8.058e-05,2]
[360700079,1746939032815,-151.0,8.058e-05,2]
[360700080,1746939032824,-151.0,8.058e-05,2]
[360700081,1746939032834,-151.0,8.058e-05,2]
[360700082,1746939032844,-151.0,8.058e-05,2]
[360700083,1746939033045,-151.0,8.058e-05,2]
[360700084,1746939033057,-151.0,8.058e-05,2]
[360700085,1746939033067,-392.627055,8.058e-05,2]
[360700086,1746939033078,-392.627055,8.058e-05,2]
[360700087,1746939033088,-392.627055,8.058e-05,2]
[360700088,1746939033099,-392.627055,8.058e-05,2]
[360700089,1746939033109,-234.157687,8.058e-05,2]
[360700090,1746939033119,-234.157687,8.058e-05,2]
[360700091,1746939033129,-751.823098,8.058e-05,2]
[360700092,1746939033139,-751.823098,8.058e-05,2]
[360700093,1746939033148,-151.0,8.059e-05,2]
[360700094,1746939033159,-151.0,8.059e-05,2]
[360700095,1746939033169,-151.0,8.059e-05,2]
[360700096,1746939033179,-500.0,8.059e-05,2]
[360700097,1746939033189,-500.0,8.059e-05,2]
[360700098,1746939033198,-151.0,8.059e-05,2]
[360700099,1746939033208,-151.0,8.059e-05,2]
[360700100,1746939033217,-151.0,8.059e-05,2]
[360700101,1746939033228,-151.0,8.059e-05,2]
[360700102,1746939033237,-151.0,8.059e-05,2]
[360700103,1746939033247,-151.0,8.059e-05,2]
[360700104,1746939033257,-151.0,8.059e-05,2]
[360700105,1746939033267,-151.0,8.059e-05,2]
[360700106,1746939033278,-151.0,8.059e-05,2]
[360700107,1746939033287,-153.09369,8.059e-05,2]
[360700108,1746939033298,-151.0,8.059e-05,2]
[360700109,1746939033308,-170.413498,8.059e-05,2]
[360700110,1746939033319,-170.413498,8.059e-05,2]
[360700111,1746939033329,-151.0,8.059e-05,2]
[360700112,1746939033338,-151.0,8.059e-05,2]
[360700113,1746939033348,-151.0,8.059e-05,2]
[360700114,1746939033358,-151.0,8.059e-05,2]
[360700115,1746939033368,-151.0,8.059e-05,2]
[360700116,1746939033379,-151.0,8.059e-05,2]
[360700117,1746939033389,-151.0,8.059e-05,2]
[360700118,1746939033398,-151.0,8.059e-05,2]
[360700119,1746939033409,-151.0,8.059e-05,2]
[360700120,1746939033419,-151.0,8.059e-05,2]
[360700121,1746939033430,-151.0,8.059e-05,2]
[360700122,1746939033439,-151.0,8.059e-05,2]
[360700123,1746939033448,-151.0,8.059e-05,2]
[360700124,1746939033457,-151.0,8.059e-05,2]
[360700125,1746939033467,-151.0,8.059e-05,2]
[360700126,1746939033477,-151.0,8.059e-05,2]
[360700127,1746939033486,-151.0,8.059e-05,2]
[360700128,1746939033496,-258.567958,8.059e-05,2]
[360700129,1746939033505,-475.780196,8.059e-05,2]
[360700130,1746939033515,-475.780196,8.059e-05,2]
[360700131,1746939033528,-475.780196,8.059e-05,2]
[360700132,1746939033538,-475.780196,8.059e-05,2]
[360700133,1746939033547,-306.646714,8.059e-05,2]
[360700134,1746939033557,-306.646714,8.059e-05,2]
[360700135,1746939033569,-306.646714,8.059e-05,2]
[360700136,1746939033579,-306.646714,8.059e-05,2]
[360700137,1746939033589,-151.0,8.059e-05,2]
[360700138,1746939033600,-151.0,8.059e-05,2]
[360700139,1746939033610,-151.0,8.059e-05,2]
[360700140,1746939033619,-266.375555,8.059e-05,2]
[360700141,1746939033629,-266.375555,8.059e-05,2]
[360700142,1746939033638,-266.375555,8.059e-05,2]
[360700143,1746939033648,-266.375555,8.059e-05,2]
[360700144,1746939033657,-266.375555,8.059e-05,2]
[360700145,1746939033667,-266.375555,8.059e-05,2]
[360700146,1746939033678,-151.0,8.059e-05,2]
[360700147,1746939033688,-151.0,8.059e-05,2]
[360700148,1746939033698,-151.0,8.059e-05,2]
[360700149,1746939033707,-308.905421,8.059e-05,2]
[360700150,1746939033717,-308.905421,8.059e-05,2]
[360700151,1746939033728,-308.905421,8.059e-05,2]
[360700152,1746939033738,-308.905421,8.059e-05,2]
[360700153,1746939033747,-308.905421,8.059e-05,2]
[360700154,1746939033756,-308.905421,8.059e-05,2]
[360700155,1746939033766,-151.0,8.059e-05,2]
[360700156,1746939033776,-151.0,8.059e-05,2]
[360700157,1746939033785,-151.0,8.059e-05,2]
[360700158,1746939033796,-151.0,8.059e-05,2]
[360700159,1746939033806,-151.0,8.059e-05,2]
[360700160,1746939033816,-151.0,8.059e-05,2]
[360700161,1746939033826,-151.0,8.059e-05,2]
[360700162,1746939033837,-151.0,8.059e-05,2]
[360700163,1746939033847,-151.0,8.059e-05,2]
[360700164,1746939033856,-151.0,8.059e-05,2]
[360700165,1746939033866,-151.0,8.059e-05,2]
[360700166,1746939033876,-154.925536,8.059e-05,2]
[360700167,1746939033885,-223.059596,8.059e-05,2]
[360700168,1746939033895,-223.059596,8.059e-05,2]
[360700169,1746939033904,-223.059596,8.059e-05,2]
[360700170,1746939033914,-223.059596,8.059e-05,2]
[360700171,1746939033924,-223.059596,8.059e-05,2]
[360700172,1746939033933,-7.12141824,8.059e-05,2]
[360700173,1746939033970,-269.73296349,8.051e-05,2]
[360700174,1746939033980,-215.93817776,8.059e-05,2]
[360700175,1746939033990,-151.0,8.059e-05,2]
[360700176,1746939033999,-151.0,8.059e-05,2]
[360700177,1746939034009,-151.0,8.059e-05,2]
[360700178,1746939034018,-170.577501,8.059e-05,2]
[360700179,1746939034028,-151.0,8.059e-05,2]
[360700180,1746939034037,-151.0,8.059e-05,2]
[360700181,1746939034047,-151.0,8.059e-05,2]
[360700182,1746939034056,-249.351258,8.059e-05,2]
[360700183,1746939034067,-151.0,8.059e-05,2]
[360700184,1746939034076,-151.0,8.059e-05,2]
[360700185,1746939034086,-151.0,8.059e-05,2]
[360700186,1746939034096,-151.0,8.059e-05,2]
[360700187,1746939034105,-273.666201,8.059e-05,2]
[360700188,1746939034115,-2808.151605,8.059e-05,2]
[360700189,1746939034125,-2808.151605,8.059e-05,2]
[360700190,1746939034135,-2808.151605,8.059e-05,2]
[360700191,1746939034144,-2808.151605,8.059e-05,2]
[360700192,1746939034154,-2808.151605,8.059e-05,2]
[360700193,1746939034164,-2808.151605,8.059e-05,2]
[360700194,1746939034173,-3115.48687987,8.059e-05,2]
[360700195,1746939034183,-151.0,8.059e-05,2]
[360700196,1746939034192,-151.0,8.059e-05,2]
[360700197,1746939034202,-151.0,8.059e-05,2]
[360700198,1746939034211,-151.0,8.059e-05,2]
[360700199,1746939034221,-151.0,8.059e-05,2]
[360700200,1746939034231,-151.0,8.059e-05,2]
[360700201,1746939034241,-151.0,8.059e-05,2]
[360700202,1746939034251,-151.0,8.059e-05,2]
[360700203,1746939034262,-199.937283,8.059e-05,2]
[360700204,1746939034272,-392.627055,8.059e-05,2]
[360700205,1746939034281,-392.627055,8.059e-05,2]
[360700206,1746939034291,-392.627055,8.059e-05,2]
[360700207,1746939034301,-392.627055,8.059e-05,2]
[360700208,1746939034310,-392.627055,8.059e-05,2]
[360700209,1746939034321,-392.627055,8.059e-05,2]
[360700210,1746939034331,-234.157687,8.059e-05,2]